bitfinex/quotes_SOLUSD_20240912
["timestamp","ask_amount","ask_price","bid_price","bid_amount"]
[1726183096025,23.776884,136.57,136.52,16.464]
[1726183097497,23.776884,136.57,136.52,26.5670388]
[1726183097816,23.776884,136.58,136.53,11.56777449]
[1726183098123,0.2533746,136.59,136.55,10.1030388]
[1726183098300,0.2533746,136.59,136.55,11.56749354]
[1726183098700,0.2533746,136.59,136.55,1.46445474]
[1726183099611,0.2533746,136.59,136.54,6.1096]
[1726183109946,0.2533746,136.59,136.55,1.46383443]
[1726183110308,0.2533746,136.59,136.54,6.1096]
[1726183110508,0.2533746,136.59,136.56,16.4303]
[1726183120824,0.2533746,136.59,136.54,6.1096]
[1726183121124,23.776884,136.58,136.54,6.1096]
[1726183123422,24.0302586,136.59,136.54,6.1096]
[1726183126742,23.776884,136.57,136.54,6.1096]
[1726183127759,30.366884,136.57,136.52,15.1535]
[1726183128648,23.776884,136.57,136.52,15.1535]
[1726183132845,23.776884,136.58,136.52,15.1535]
[1726183133725,24.0302586,136.59,136.52,15.1535]
[1726183134151,46.0702586,136.59,136.52,15.1535]
[1726183134651,52.6594586,136.59,136.52,15.1535]
[1726183134960,23.776884,136.57,136.52,15.1535]
[1726183136747,30.366884,136.57,136.52,15.1535]
[1726183136955,23.776884,136.55,136.51,6.2303]
[1726183138955,25.05033997,136.55,136.51,6.2303]
[1726183142044,23.776884,136.53,136.51,6.2303]
[1726183142237,31.64143997,136.55,136.51,6.2303]
[1726183146667,53.68143997,136.55,136.51,6.2303]
[1726183146959,0.12549,136.54,136.49,16.306]
[1726183151261,47.09033997,136.55,136.49,16.306]
[1726183151472,1.27345597,136.55,136.5,16.4418388]
[1726183151676,0.2533746,136.59,136.54,6.3388]
[1726183152343,6.8426746,136.59,136.54,6.3388]
[1726183152947,95.816884,136.58,136.54,6.3388]
[1726183153256,0.12549,136.57,136.54,6.3388]
[1726183153569,28.75559,136.57,136.53,15.519]
[1726183154073,23.776884,136.56,136.53,15.519]
[1726183154445,30.367484,136.56,136.53,15.519]
[1726183154863,23.776884,136.56,136.53,15.519]
[1726183155668,45.816884,136.56,136.5,21.6526]
[1726183159351,102.407384,136.56,136.5,21.6526]
[1726183159665,0.12549,136.55,136.5,21.6526]
[1726183159874,0.25098,136.55,136.5,21.6526]
[1726183160377,23.776884,136.54,136.5,21.6526]
[1726183162155,23.776884,136.52,136.5,21.6526]
[1726183162365,23.776884,136.54,136.5,21.6526]
[1726183163756,45.816884,136.54,136.47,22.3939]
[1726183164275,102.408384,136.54,136.47,22.3939]
[1726183165379,23.776884,136.52,136.47,22.3939]
[1726183165578,45.816884,136.52,136.47,22.3939]
[1726183166958,23.776884,136.52,136.47,22.3939]
[1726183168978,45.816884,136.52,136.47,22.3939]
[1726183175686,102.409384,136.52,136.47,22.3939]
[1726183175889,102.409384,136.52,136.47,15.7683]
[1726183177783,102.409384,136.52,136.45,0.2533746]
[1726183178096,23.776884,136.49,136.45,0.2533746]
[1726183178588,30.370784,136.49,136.45,0.2533746]
[1726183181389,23.776884,136.49,136.45,0.2533746]
[1726183182802,22.04,136.48,136.45,0.2533746]
[1726183183089,23.776884,136.49,136.45,0.2533746]
[1726183184196,7.61490935,136.52,136.45,0.2533746]
[1726183184197,7.61490935,136.52,136.45,11.81935956]
[1726183184374,6.5919,136.53,136.45,11.81935956]
[1726183184894,6.5924,136.52,136.45,0.2533746]
[1726183185065,78.6324,136.52,136.45,0.2533746]
[1726183185477,46.067864,136.51,136.45,0.2533746]
[1726183185678,52.660864,136.51,136.45,0.2533746]
[1726183187593,45.816884,136.49,136.45,0.2533746]
[1726183188290,52.410784,136.49,136.45,0.2533746]
[1726183188887,23.776884,136.49,136.45,0.2533746]
[1726183193397,56.5926,136.52,136.45,0.2533746]
[1726183193895,56.5938,136.5,136.45,0.2533746]
[1726183194098,28.6339,136.49,136.45,0.2533746]
[1726183194483,23.776884,136.48,136.45,0.2533746]
[1726183195800,45.816884,136.48,136.45,0.2533746]
[1726183197693,102.411284,136.48,136.45,0.2533746]
[1726183197896,0.25098,136.47,136.45,0.2533746]
[1726183200579,95.816884,136.46,136.45,0.2533746]
[1726183200777,96.067864,136.46,136.45,0.2533746]
[1726183201502,102.663164,136.46,136.45,0.2533746]
[1726183202482,46.067864,136.46,136.45,0.2533746]
[1726183202686,23.902374,136.46,136.45,0.2533746]
[1726183203090,45.942374,136.46,136.45,0.2533746]
[1726183203893,45.816884,136.46,136.45,0.2533746]
[1726183204092,95.942374,136.46,136.45,0.2533746]
[1726183204291,96.067864,136.46,136.45,0.2533746]
[1726183205205,24.027864,136.46,136.45,0.2533746]
[1726183205383,23.902374,136.46,136.45,0.2533746]
[1726183209481,23.776884,136.46,136.45,0.2533746]
[1726183214883,72.04,136.5,136.45,0.2533746]
[1726183215086,44.1,136.52,136.45,0.2533746]
[1726183215087,94.1,136.52,136.45,0.2533746]
[1726183215385,6.5933,136.51,136.45,0.2533746]
[1726183216011,28.6333,136.51,136.45,0.2533746]
[1726183216198,0.12549,136.5,136.45,0.2533746]
[1726183216401,24.027864,136.5,136.45,0.2533746]
[1726183216596,46.067864,136.5,136.45,0.2533746]
[1726183219185,23.776884,136.51,136.45,0.2533746]
[1726183219389,22.04,136.53,136.47,10.1030388]
[1726183219598,56.5906,136.56,136.48,11.56685003]
[1726183219808,6.5901,136.57,136.5,10.1030388]
[1726183220005,73.1334,136.58,136.5,10.1030388]
[1726183220312,72.04,136.56,136.51,15.0257]
[1726183220498,22.04,136.56,136.51,15.0257]
[1726183221098,23.776884,136.55,136.51,15.0257]
[1726183221285,22.04,136.56,136.51,15.0257]
[1726183221286,23.776884,136.56,136.51,15.0257]
[1726183222212,79.65862167,136.58,136.51,26.59184988]
[1726183222411,0.2533746,136.59,136.52,11.56632657]
[1726183222590,0.2533746,136.59,136.52,10.1030388]
[1726183222792,56.5896,136.58,136.51,15.0257]
[1726183223006,50.0,136.58,136.51,15.0257]
[1726183223313,78.6296,136.58,136.51,15.0257]
[1726183223694,46.067864,136.57,136.51,15.0257]
[1726183230522,24.027864,136.57,136.51,15.0257]
[1726183230725,23.902374,136.57,136.51,15.0257]
[1726183230916,23.776884,136.58,136.51,15.0257]
[1726183231627,23.776884,136.56,136.51,15.0257]
[1726183236021,22.04,136.54,136.51,15.0257]
[1726183236198,45.816884,136.54,136.49,6.3446]
[1726183237002,52.408384,136.54,136.49,6.3446]
[1726183237306,45.816884,136.54,136.49,6.3446]
[1726183244009,23.902374,136.55,136.49,6.3446]
[1726183244312,23.776884,136.55,136.49,6.3446]
[1726183245209,95.816884,136.55,136.49,6.3446]
[1726183245434,0.12549,136.54,136.49,6.3446]
[1726183249539,23.776884,136.52,136.49,6.3446]
[1726183250323,45.816884,136.52,136.49,6.3446]
[1726183250631,23.776884,136.52,136.49,6.3446]
[1726183251225,23.776884,136.53,136.49,6.3446]
[1726183251618,23.776884,136.51,136.49,6.3446]
[1726183251825,23.776884,136.53,136.49,6.3446]
[1726183258925,95.816884,136.53,136.49,6.3446]
[1726183259539,23.776884,136.51,136.48,16.6374]
[1726183262835,45.816884,136.52,136.48,16.6374]
[1726183266058,52.409684,136.52,136.48,16.6374]
[1726183267337,52.409684,136.52,136.46,6.2832]
[1726183267537,45.816884,136.52,136.46,6.2832]
[1726183283366,23.776884,136.47,136.45,16.6953746]
[1726183284947,102.412184,136.46,136.45,0.2533746]
[1726183285156,102.663164,136.46,136.45,0.2533746]
[1726183287458,95.942374,136.46,136.45,0.2533746]
[1726183287646,95.816884,136.46,136.45,0.2533746]
[1726183287963,95.942374,136.46,136.45,0.2533746]
[1726183294560,95.816884,136.46,136.45,0.2533746]
[1726183294747,95.942374,136.46,136.45,0.2533746]
[1726183295562,22.04,136.48,136.45,0.2533746]
[1726183296047,1.27852609,136.51,136.45,0.2533746]
[1726183296048,51.27852609,136.51,136.45,0.2533746]
[1726183296270,50.0,136.51,136.45,0.2533746]
[1726183296655,72.04,136.49,136.45,0.2533746]
[1726183296855,23.776884,136.48,136.45,0.2533746]
[1726183297594,23.776884,136.46,136.45,0.2533746]
[1726183302274,22.04,136.48,136.45,0.2533746]
[1726183303455,23.776884,136.47,136.45,0.2533746]
[1726183308881,23.776884,136.48,136.45,0.2533746]
[1726183309075,23.776884,136.49,136.45,0.2533746]
[1726183311875,102.410684,136.49,136.45,0.2533746]
[1726183312283,0.25098,136.48,136.45,0.2533746]
[1726183313561,23.776884,136.47,136.45,0.2533746]
[1726183315066,23.776884,136.48,136.45,0.2533746]
[1726183322096,45.816884,136.48,136.45,0.2533746]
[1726183323296,45.816884,136.46,136.45,0.2533746]
[1726183323485,45.942374,136.46,136.45,0.2533746]
[1726183326692,46.067864,136.46,136.45,0.2533746]
[1726183326896,45.942374,136.46,136.45,0.2533746]
[1726183327197,78.634,136.49,136.45,0.2533746]
[1726183327398,0.25098,136.48,136.45,0.2533746]
[1726183328583,72.04,136.49,136.45,0.2533746]
[1726183329987,23.776884,136.48,136.45,0.2533746]
[1726183332398,23.776884,136.5,136.45,22.6753746]
[1726183334503,22.04,136.52,136.46,10.1030388]
[1726183335909,95.816884,136.51,136.45,32.7784134]
[1726183336593,95.816884,136.51,136.45,22.6753746]
[1726183336785,0.12549,136.5,136.45,22.6753746]
[1726183338385,95.816884,136.51,136.46,10.1030388]
[1726183338611,95.816884,136.51,136.45,32.7784134]
[1726183339305,95.816884,136.51,136.45,22.6753746]
[1726183339509,0.25098,136.5,136.45,22.6753746]
[1726183340194,95.816884,136.49,136.45,22.6753746]
[1726183350607,0.25098,136.48,136.45,22.6753746]
[1726183353815,23.776884,136.47,136.45,22.6753746]
[1726183363027,23.776884,136.46,136.45,22.6753746]
[1726183372818,23.776884,136.46,136.45,0.2533746]
[1726183373017,45.816884,136.46,136.45,0.2533746]
[1726183373229,23.776884,136.46,136.45,0.2533746]
[1726183383349,45.816884,136.46,136.45,0.2533746]
[1726183384125,23.776884,136.46,136.45,0.2533746]
[1726183385130,50.0,136.49,136.45,0.2533746]
[1726183385340,22.04,136.5,136.45,0.2533746]
[1726183385852,50.0,136.51,136.45,0.2533746]
[1726183386352,22.04,136.5,136.45,0.2533746]
[1726183386535,50.0,136.53,136.46,26.6455388]
[1726183386726,50.0,136.53,136.46,33.0303388]
[1726183387050,44.1,136.54,136.47,10.1030388]
[1726183387352,72.04,136.53,136.47,10.1030388]
[1726183387849,72.04,136.53,136.46,33.0303388]
[1726183388234,78.632,136.53,136.46,22.9273]
[1726183388554,45.816884,136.5,136.46,22.9273]
[1726183391248,45.816884,136.5,136.46,16.5425]
[1726183391567,23.776884,136.48,136.45,0.2533746]
[1726183394634,23.776884,136.49,136.45,0.2533746]
[1726183395845,73.776884,136.49,136.45,0.2533746]
[1726183401959,22.04,136.48,136.45,0.2533746]
[1726183402154,23.776884,136.47,136.45,0.2533746]
[1726183408861,95.816884,136.47,136.45,0.2533746]
[1726183413577,6.5953,136.46,136.45,0.2533746]
[1726183413738,96.763164,136.46,136.45,0.2533746]
[1726183413937,45.816884,136.46,136.45,0.2533746]
[1726183415071,50.0,136.49,136.45,0.2533746]
[1726183415952,22.05,136.48,136.45,0.2533746]
[1726183416365,23.776884,136.47,136.45,0.2533746]
[1726183418570,45.826884,136.47,136.45,0.2533746]
[1726183419453,96.077864,136.46,136.45,0.2533746]
[1726183419849,46.077864,136.46,136.45,0.2533746]
[1726183422458,24.027864,136.46,136.45,0.2533746]
[1726183422657,23.776884,136.46,136.45,0.2533746]
[1726183429155,22.05,136.49,136.45,0.2533746]
[1726183429552,56.5929,136.51,136.45,0.2533746]
[1726183430384,22.05,136.5,136.45,0.2533746]
[1726183430761,23.776884,136.49,136.45,0.2533746]
[1726183432069,23.776884,136.49,136.45,10.3564134]
[1726183432960,23.776884,136.5,136.45,0.2533746]
[1726183442393,23.776884,136.48,136.45,0.2533746]
[1726183442731,56.5906,136.56,136.47,32.5400388]
[1726183442863,56.5906,136.56,136.49,10.1030388]
[1726183443058,6.5901,136.57,136.5,10.1030388]
[1726183443457,22.05,136.56,136.5,10.1030388]
[1726183444692,22.05,136.56,136.47,22.437]
[1726183444693,22.05,136.56,136.49,10.1030388]
[1726183445397,23.776884,136.55,136.49,10.1030388]
[1726183448072,45.826884,136.55,136.48,10.1030388]
[1726183448380,45.826884,136.55,136.47,32.5400388]
[1726183449473,52.417884,136.55,136.47,32.5400388]
[1726183450506,23.776884,136.53,136.47,22.437]
[1726183456579,45.826884,136.53,136.47,22.437]
[1726183467411,52.418784,136.53,136.47,22.437]
[1726183467618,0.25098,136.52,136.47,22.437]
[1726183474001,23.776884,136.51,136.47,22.437]
[1726183479307,50.0,136.55,136.48,10.1030388]
[1726183479503,100.6901,136.57,136.5,15.8565]
[1726183480314,22.05,136.56,136.5,15.8565]
[1726183481221,23.776884,136.55,136.5,15.8565]
[1726183482697,22.05,136.56,136.51,6.2815]
[1726183483032,50.2533746,136.59,136.53,10.1030388]
[1726183483320,0.2533746,136.59,136.53,25.9595388]
[1726183483696,22.3033746,136.59,136.53,25.9595388]
[1726183484193,23.776884,136.58,136.53,25.9595388]
[1726183484397,23.776884,136.58,136.53,15.8565]
[1726183487033,24.0302586,136.59,136.54,1.46388834]
[1726183487836,24.0302586,136.59,136.53,25.9595388]
[1726183488523,30.6193586,136.59,136.53,15.8565]
[1726183489147,24.0302586,136.59,136.53,15.8565]
[1726183492131,30.6193586,136.59,136.53,15.8565]
[1726183492359,23.776884,136.57,136.53,15.8565]
[1726183493352,0.12549,136.56,136.53,15.8565]
[1726183506759,23.776884,136.55,136.53,15.8565]
[1726183507352,73.776884,136.55,136.51,6.2815]
[1726183507559,0.25098,136.54,136.51,6.2815]
[1726183508059,23.776884,136.55,136.51,6.2815]
[1726183508656,95.826884,136.55,136.51,6.2815]
[1726183508863,0.25098,136.54,136.51,6.2815]
[1726183509237,6.84248,136.54,136.51,6.2815]
[1726183509459,23.776884,136.53,136.51,6.2815]
[1726183509759,23.776884,136.53,136.5,15.0455]
[1726183511875,23.776884,136.51,136.5,15.0455]
[1726183512868,23.776884,136.51,136.47,6.2709]
[1726183513070,23.776884,136.52,136.47,6.2709]
[1726183518852,30.369284,136.52,136.47,6.2709]
[1726183519090,23.776884,136.5,136.47,6.2709]
[1726183520166,45.826884,136.5,136.47,6.2709]
[1726183520378,0.12549,136.49,136.45,0.2533746]
[1726183520569,0.25098,136.49,136.45,0.2533746]
[1726183521363,23.776884,136.48,136.45,0.2533746]
[1726183521979,22.05,136.47,136.45,0.2533746]
[1726183522187,23.776884,136.48,136.45,0.2533746]
[1726183522862,30.371184,136.48,136.45,0.2533746]
[1726183523793,23.776884,136.46,136.45,0.2533746]
[1726183537494,23.902374,136.49,136.45,0.2533746]
[1726183542177,102.546374,136.49,136.45,0.2533746]
[1726183545693,45.952374,136.49,136.45,0.2533746]
[1726183546582,45.826884,136.49,136.45,0.2533746]
[1726183547379,72.05,136.51,136.45,0.2533746]
[1726183547605,6.5924,136.52,136.46,15.9542]
[1726183547906,0.12549,136.51,136.46,15.9542]
[1726183548906,23.902374,136.51,136.46,15.9542]
[1726183549706,52.545274,136.51,136.46,15.9542]
[1726183549882,102.545274,136.51,136.46,15.9542]
[1726183554007,28.6434,136.5,136.46,15.9542]
[1726183554301,23.776884,136.49,136.46,15.9542]
[1726183554880,30.370884,136.49,136.46,15.9542]
[1726183555317,52.420884,136.49,136.45,0.2533746]
[1726183555507,102.420884,136.49,136.45,0.2533746]
[1726183555688,23.776884,136.47,136.45,0.2533746]
[1726183558795,23.776884,136.48,136.45,0.2533746]
[1726183562211,23.776884,136.46,136.45,0.2533746]
[1726183569203,23.902374,136.46,136.45,0.2533746]
[1726183571620,30.497674,136.46,136.45,0.2533746]
[1726183572406,52.547674,136.46,136.45,0.2533746]
[1726183574625,52.673164,136.46,136.45,0.2533746]
[1726183577023,23.776884,136.46,136.45,0.2533746]
[1726183579131,45.826884,136.46,136.45,0.2533746]
[1726183579340,46.077864,136.46,136.45,0.2533746]
[1726183586423,52.673164,136.46,136.45,0.2533746]
[1726183593341,46.077864,136.46,136.45,0.2533746]
[1726183593711,52.673164,136.46,136.45,0.2533746]
[1726183604621,96.773164,136.46,136.45,0.2533746]
[1726183604816,56.5949,136.47,136.45,0.2533746]
[1726183605140,22.05,136.48,136.45,0.2533746]
[1726183605445,28.6446,136.48,136.45,0.2533746]
[1726183606239,30.497174,136.47,136.45,0.2533746]
[1726183607738,102.547174,136.47,136.45,0.2533746]
[1726183608234,0.12549,136.46,136.45,0.2533746]
[1726183609749,52.547674,136.46,136.45,0.2533746]
[1726183610049,52.673164,136.46,136.45,0.2533746]
[1726183614730,96.773164,136.46,136.45,0.2533746]
[1726183622866,56.5949,136.47,136.45,0.2533746]
[1726183623037,78.6449,136.47,136.45,0.2533746]
[1726183624131,24.027864,136.46,136.45,0.2533746]
[1726183624932,78.6449,136.47,136.45,0.2533746]
[1726183625132,28.6449,136.47,136.45,0.2533746]
[1726183625838,28.6445,136.48,136.45,0.2533746]
[1726183626155,23.776884,136.47,136.45,0.2533746]
[1726183634265,52.421884,136.47,136.45,0.2533746]
[1726183636047,102.421884,136.47,136.45,0.2533746]
[1726183637146,28.6453,136.46,136.45,0.2533746]
[1726183637340,52.673164,136.46,136.45,0.2533746]
[1726183648777,57.6626164,136.49,136.45,0.2533746]
[1726183648955,78.6449,136.47,136.45,0.2533746]
[1726183649372,6.5953,136.46,136.45,0.2533746]
[1726183650278,30.497674,136.46,136.45,0.2533746]
[1726183651084,52.547674,136.46,136.45,0.2533746]
[1726183651262,52.673164,136.46,136.45,0.2533746]
[1726183659877,60.33240774,136.46,136.45,0.2533746]
[1726183661788,104.43240774,136.46,136.45,0.2533746]
[1726183665889,104.43240774,136.46,136.41,0.2533746]
[1726183665890,78.6472,136.43,136.41,0.2533746]
[1726183666069,0.12549,136.42,136.41,0.2533746]
[1726183666260,52.675064,136.42,136.41,0.2533746]
[1726183666990,96.775064,136.42,136.41,0.2533746]
[1726183667909,52.675064,136.42,136.41,0.2533746]
[1726183668065,46.077864,136.42,136.41,0.2533746]
[1726183671892,52.675064,136.42,136.41,0.2533746]
[1726183676002,96.775064,136.42,136.41,0.2533746]
[1726183706509,22.05,136.42,136.41,0.2533746]
[1726183707725,22.30098,136.42,136.41,0.2533746]
[1726183707938,46.077864,136.42,136.41,0.2533746]
[1726183708217,22.07,136.44,136.41,0.2533746]
[1726183708418,108.8,136.47,136.41,0.2533746]
[1726183709194,130.87,136.47,136.41,0.2533746]
[1726183709400,137.465,136.47,136.41,0.2533746]
[1726183709697,24.027864,136.46,136.41,0.2533746]
[1726183710626,80.87,136.47,136.42,6.6025]
[1726183710927,58.8,136.47,136.42,16.7055388]
[1726183712596,23.776884,136.46,136.42,16.7055388]
[1726183713327,23.776884,136.47,136.42,16.7055388]
[1726183713828,23.776884,136.47,136.42,6.6025]
[1726183717830,95.846884,136.47,136.42,6.6025]
[1726183719630,45.846884,136.47,136.42,6.6025]
[1726183722336,22.07,136.5,136.44,10.1030388]
[1726183723541,23.776884,136.49,136.43,25.4638388]
[1726183724642,23.776884,136.47,136.43,25.4638388]
[1726183724819,23.776884,136.49,136.43,25.4638388]
[1726183726435,23.776884,136.49,136.44,10.1030388]
[1726183728437,52.440884,136.49,136.43,15.3608]
[1726183728614,0.12549,136.48,136.43,15.3608]
[1726183731845,23.776884,136.49,136.44,10.1030388]
[1726183732220,23.776884,136.49,136.45,10.1030388]
[1726183734929,23.776884,136.5,136.45,10.1030388]
[1726183735120,45.846884,136.5,136.45,10.1030388]
[1726183736042,45.846884,136.5,136.44,10.1030388]
[1726183737631,102.440284,136.5,136.43,15.3608]
[1726183737837,102.440284,136.5,136.43,25.4638388]
[1726183738033,52.440284,136.5,136.43,25.4638388]
[1726183738652,102.440284,136.5,136.43,25.4638388]
[1726183741333,45.846884,136.48,136.43,15.3608]
[1726183741537,23.776884,136.48,136.43,15.3608]
[1726183741845,45.846884,136.48,136.43,15.3608]
[1726183748333,0.12549,136.47,136.43,15.3608]
[1726183748530,0.25098,136.47,136.43,15.3608]
[1726183750024,23.776884,136.46,136.43,15.3608]
[1726183752539,23.776884,136.46,136.42,6.6025]
[1726183763969,102.442584,136.46,136.41,0.2533746]
[1726183765550,28.6662,136.45,136.41,0.2533746]
[1726183765756,23.776884,136.44,136.41,0.2533746]
[1726183767371,45.846884,136.44,136.41,0.2533746]
[1726183778014,95.846884,136.44,136.41,0.2533746]
[1726183786382,95.846884,136.44,136.4,15.9883]
[1726183786383,95.846884,136.44,136.4,15.7416746]
[1726183788579,139.976884,136.44,136.36,6.2635746]
[1726183788887,23.776884,136.4,136.36,6.2635746]
[1726183789479,23.776884,136.41,136.36,22.7824746]
[1726183790878,45.846884,136.41,136.36,22.7824746]
[1726183793075,52.444684,136.41,136.36,22.7824746]
[1726183793887,50.0,136.43,136.37,10.1030388]
[1726183794093,22.07,136.43,136.37,10.1030388]
[1726183795200,22.07,136.44,136.37,10.1030388]
[1726183795513,22.07,136.44,136.36,32.8855134]
[1726183795514,45.972374,136.43,136.36,32.8855134]
[1726183796907,45.972374,136.43,136.37,0.95940872]
[1726183799695,45.972374,136.43,136.36,32.8855134]
[1726183800687,45.972374,136.43,136.37,1.4655249]
[1726183801303,45.972374,136.43,136.36,32.8855134]
[1726183803111,72.07,136.45,136.38,15.1867]
[1726183803287,16.3593,136.48,136.4,10.1030388]
[1726183803288,50.0,136.47,136.4,10.1030388]
[1726183803602,6.5945,136.48,136.4,11.56852019]
[1726183803910,56.5939,136.49,136.41,25.9757388]
[1726183804205,50.0,136.49,136.43,6.2129]
[1726183804420,22.07,136.48,136.43,6.2129]
[1726183805313,23.776884,136.45,136.43,6.2129]
[1726183810217,28.6634,136.5,136.43,6.2129]
[1726183810424,23.902374,136.49,136.43,6.2129]
[1726183810721,45.972374,136.49,136.43,6.2129]
[1726183811610,23.902374,136.49,136.43,6.2129]
[1726183811807,45.972374,136.49,136.43,6.2129]
[1726183812015,23.902374,136.49,136.43,6.2129]
[1726183812212,23.776884,136.49,136.43,6.2129]
[1726183812411,56.9717646,136.51,136.43,16.3159388]
[1726183812725,46.097864,136.5,136.43,16.3159388]
[1726183813103,23.902374,136.5,136.43,16.3159388]
[1726183813311,23.776884,136.5,136.44,10.1030388]
[1726183813508,23.776884,136.5,136.45,16.3235]
[1726183816027,23.776884,136.48,136.45,16.3235]
[1726183816336,23.776884,136.5,136.45,16.3235]
[1726183823145,0.2533746,136.51,136.46,10.1030388]
[1726183823435,0.2533746,136.51,136.49,25.7037388]
[1726183824110,0.2533746,136.51,136.5,10.1030388]
[1726183826525,0.2533746,136.51,136.5,16.3455388]
[1726183826720,0.2533746,136.55,136.5,16.3455388]
[1726183826721,0.2533746,136.55,136.5,16.5965188]
[1726183826922,0.2533746,136.55,136.51,10.1030388]
[1726183827631,0.2533746,136.55,136.5,16.3455388]
[1726183828530,0.2533746,136.55,136.51,10.1030388]
[1726183830744,0.2533746,136.55,136.52,10.1030388]
[1726183832418,0.2533746,136.55,136.54,16.095]
[1726183832617,0.2533746,136.55,136.54,26.1980388]
[1726183835028,0.2533746,136.55,136.54,16.095]
[1726183836340,0.2533746,136.55,136.54,32.2842388]
[1726183841250,0.2533746,136.55,136.54,22.1812]
[1726183844429,0.2533746,136.55,136.52,20.0]
[1726183844636,0.2533746,136.55,136.51,10.1030388]
[1726183844836,0.2533746,136.55,136.5,21.5431]
[1726183845650,0.2533746,136.55,136.46,22.3416]
[1726183845841,0.2533746,136.55,136.47,10.1030388]
[1726183846033,0.2533746,136.55,136.49,10.1030388]
[1726183846556,23.776884,136.54,136.49,10.1030388]
[1726183846726,0.2533746,136.55,136.51,10.1030388]
[1726183847252,0.2533746,136.55,136.5,10.1030388]
[1726183850057,0.2533746,136.55,136.49,10.1030388]
[1726183850552,0.2533746,136.55,136.48,10.1030388]
[1726183853452,0.2533746,136.55,136.47,10.1030388]
[1726183853453,23.776884,136.54,136.47,10.1030388]
[1726183854135,23.776884,136.54,136.46,22.3416]
[1726183854336,23.776884,136.54,136.47,10.1030388]
[1726183856763,23.776884,136.54,136.48,10.1030388]
[1726183859940,23.776884,136.54,136.47,10.1030388]
[1726183860638,30.368384,136.54,136.46,32.4446388]
[1726183860851,73.776884,136.54,136.46,32.4446388]
[1726183861148,73.776884,136.52,136.42,21.8371]
[1726183861357,22.32098,136.53,136.46,10.1030388]
[1726183861358,23.776884,136.53,136.46,10.1030388]
[1726183861540,23.776884,136.53,136.48,10.1030388]
[1726183861727,23.776884,136.54,136.49,10.1030388]
[1726183862232,16.4093746,136.55,136.5,11.56809287]
[1726183862436,16.4093746,136.55,136.52,10.1030388]
[1726183862437,0.2533746,136.55,136.52,10.1030388]
[1726183862656,0.2533746,136.55,136.53,10.1030388]
[1726183862849,0.2533746,136.55,136.52,10.1030388]
[1726183865542,0.2533746,136.55,136.47,22.2079]
[1726183865543,0.2533746,136.55,136.51,10.1030388]
[1726183865741,0.2533746,136.55,136.49,10.1030388]
[1726183866362,0.2533746,136.55,136.5,10.1030388]
[1726183866938,0.2533746,136.55,136.51,10.1030388]
[1726183867350,0.2533746,136.55,136.52,10.1030388]
[1726183867551,0.2533746,136.55,136.53,10.1030388]
[1726183868741,0.2533746,136.55,136.54,1.45814562]
[1726183869360,0.2533746,136.55,136.53,10.1030388]
[1726183870050,0.2533746,136.55,136.54,1.45807612]
[1726183870236,0.2533746,136.55,136.54,11.55863871]
[1726183871161,0.2533746,136.55,136.54,10.1030388]
[1726183872642,0.2533746,136.55,136.48,20.0]
[1726183872961,0.2533746,136.55,136.5,10.1030388]
[1726183875644,0.2533746,136.55,136.48,10.1030388]
[1726183876262,0.2533746,136.55,136.47,32.3109388]
[1726183877770,23.776884,136.53,136.46,10.2285288]
[1726183877939,23.776884,136.53,136.46,10.1030388]
[1726183878757,23.776884,136.53,136.45,10.1030388]
[1726183878972,30.368784,136.53,136.45,10.1030388]
[1726183879566,30.368784,136.53,136.44,32.5248388]
[1726183879567,80.368784,136.53,136.44,32.5248388]
[1726183879948,6.5924,136.52,136.44,22.4218]
[1726183880150,23.776884,136.51,136.43,10.1030388]
[1726183880467,23.776884,136.52,136.44,10.1030388]
[1726183882243,30.369384,136.52,136.44,10.1030388]
[1726183882472,30.369384,136.52,136.43,10.1030388]
[1726183882648,0.12549,136.51,136.43,10.1030388]
[1726183883759,0.12549,136.51,136.44,10.1030388]
[1726183885169,39.268484,136.5,136.43,10.1030388]
[1726183885470,39.268484,136.5,136.42,10.1030388]
[1726183888340,45.861884,136.5,136.41,10.3564134]